bitfinex/quotes_ETHUSD_20260208
["timestamp","ask_amount","ask_price","bid_price","bid_amount"]
[1770558066619,0.95371351,2129.3,2128.6,1.17447941]
[1770558066832,0.95371351,2129.3,2128.5,1.17449739]
[1770558067036,0.95371351,2129.3,2128.4,1.17455413]
[1770558067236,0.95371351,2129.3,2128.6,1.17448007]
[1770558067443,0.95371351,2129.3,2128.4,4.69831924]
[1770558067444,0.95371351,2129.3,2128.5,1.17449721]
[1770558067736,0.95371351,2129.3,2128.6,1.17447316]
[1770558067933,0.95371351,2129.3,2128.5,1.17448319]
[1770558068246,2.12780907,2129.3,2128.1,4.69897114]
[1770558068427,0.95371351,2129.2,2128.1,4.69897114]
[1770558069812,0.95371351,2129.5,2128.2,0.98763753]
[1770558070046,0.001,2129.8,2128.2,1.03222591]
[1770558070224,0.001,2129.8,2128.4,0.98763753]
[1770558070840,0.001,2129.8,2128.6,0.98763753]
[1770558071041,0.001,2129.8,2128.5,0.04458838]
[1770558071042,0.001,2129.8,2128.9,0.98763753]
[1770558072323,0.001,2129.8,2129.1,1.03222591]
[1770558073244,0.001,2129.8,2129.1,0.98763753]
[1770558074334,0.001,2129.8,2129.2,1.17414991]
[1770558074531,0.001,2129.8,2129.3,0.90954204]
[1770558074855,0.001,2129.6,2129.3,0.90954204]
[1770558075945,0.001,2129.6,2129.2,1.17414991]
[1770558076538,0.001,2129.6,2129.1,4.69659966]
[1770558076923,0.001,2129.6,2129.1,1.17420506]
[1770558079332,0.001,2129.6,2128.9,0.0011]
[1770558084832,0.92420241,2129.6,2128.9,0.0011]
[1770558087553,0.001,2129.4,2128.9,0.0011]
[1770558089739,1.17503963,2129.4,2128.9,0.0011]
[1770558090657,0.001,2129.4,2128.9,0.0011]
[1770558090953,0.92420241,2129.4,2128.9,0.0011]
[1770558092376,1.17409477,2129.3,2128.9,0.0011]
[1770558093439,0.92420241,2129.4,2128.9,0.0011]
[1770558093440,0.001,2129.4,2128.9,0.0011]
[1770558093960,1.17504119,2129.4,2128.9,0.0011]
[1770558094538,0.001,2129.4,2128.9,0.0011]
[1770558096759,1.17409477,2129.3,2128.9,0.0011]
[1770558097340,0.001,2129.4,2128.9,0.0011]
[1770558097540,1.17504162,2129.4,2128.9,0.0011]
[1770558098448,2.7,2129.2,2128.9,0.0011]
[1770558100243,2.701,2129.2,2128.9,0.0011]
[1770558102266,2.701,2129.2,2128.6,4.64009637]
[1770558103585,2.701,2129.2,2128.6,1.17448087]
[1770558105745,3.87515028,2129.2,2128.5,1.17452675]
[1770558106167,2.701,2129.2,2128.5,1.17452675]
[1770558106559,3.87515648,2129.2,2128.5,1.17452675]
[1770558107451,2.701,2129.2,2128.5,1.17452675]
[1770558108556,2.701,2129.2,2128.5,0.95403164]
[1770558109279,3.87515107,2129.2,2128.5,0.95403164]
[1770558109684,2.701,2129.2,2128.5,0.95403164]
[1770558110661,2.701,2129.2,2128.6,1.17448087]
[1770558111102,3.8751532,2129.2,2128.6,1.17448087]
[1770558111465,3.8751532,2129.2,2128.6,2.12851251]
[1770558113189,3.8751532,2129.2,2128.8,0.0011]
[1770558116892,2.701,2129.2,2128.8,0.0011]
[1770558117385,3.87515146,2129.2,2128.8,0.0011]
[1770558119283,0.91645168,2129.1,2128.5,0.0011]
[1770558120682,1.17426021,2129.0,2128.5,0.0011]
[1770558120899,2.09071189,2129.0,2128.5,0.0011]
[1770558122784,1.17426021,2129.0,2128.5,0.0011]
[1770558123798,2.09071189,2129.0,2128.5,0.0011]
[1770558125076,0.91645168,2128.9,2128.5,0.0011]
[1770558125400,3.283,2128.8,2128.5,0.0011]
[1770558125974,3.283,2128.8,2128.7,0.0011]
[1770558126199,3.283,2128.8,2128.5,0.0011]
[1770558127779,1.1744257,2128.7,2128.5,0.0011]
[1770558137509,2.13914333,2128.7,2128.0,0.97978519]
[1770558137709,2.13914333,2128.7,2128.0,2.15459381]
[1770558137904,1.1744257,2128.7,2128.1,0.97978519]
[1770558138300,1.1744257,2128.7,2128.1,0.98088519]
[1770558138813,0.001,2128.6,2128.1,0.98088519]
[1770558139018,3.283,2128.5,2128.1,0.0011]
[1770558140320,1.17459124,2128.4,2128.1,0.0011]
[1770558140629,3.283,2128.5,2128.1,0.98088519]
[1770558141292,4.45753764,2128.5,2128.1,0.98088519]
[1770558141620,3.283,2128.5,2128.1,0.98088519]
[1770558142291,3.283,2128.5,2128.3,0.97978519]
[1770558143191,0.001,2128.6,2128.1,0.0011]
[1770558143413,0.001,2128.6,2128.1,0.98088519]
[1770558144098,0.001,2128.6,2128.1,2.15562886]
[1770558144313,0.001,2128.6,2128.2,0.97978519]
[1770558147109,0.001,2128.6,2128.3,0.97978519]
[1770558149125,0.001,2128.6,2128.3,2.15442941]
[1770558152460,0.001,2128.6,2128.3,2.15552941]
[1770558152727,0.001,2128.4,2128.3,2.15552941]
[1770558153330,0.001,2128.4,2128.3,0.0011]
[1770558156419,0.001,2128.4,2128.1,0.0011]
[1770558158610,0.001,2128.4,2128.1,0.98088519]
[1770558160016,2.7,2128.2,2128.1,0.98088519]
[1770558160427,0.001,2128.4,2128.1,0.98088519]
[1770558160624,0.001,2128.4,2128.2,0.97978519]
[1770558164842,0.001,2128.6,2128.3,0.90261831]
[1770558165018,4.45828869,2129.0,2128.3,0.90261831]
[1770558165218,4.45828869,2129.0,2128.4,0.90261831]
[1770558165443,4.45828869,2129.0,2128.4,0.90371831]
[1770558166233,0.001,2129.0,2128.4,0.90371831]
[1770558167046,0.001,2129.0,2128.6,0.90261831]
[1770558168749,3.284,2129.5,2129.0,0.90261831]
[1770558169042,1.17360598,2130.2,2129.1,0.90261831]
[1770558169220,0.002,2129.7,2129.1,0.90261831]
[1770558169821,4.45652145,2130.4,2129.1,0.90261831]
[1770558170044,5.35779291,2130.4,2129.1,0.90261831]
[1770558170424,0.003,2129.8,2129.1,0.90261831]
[1770558170649,0.001,2129.8,2129.1,0.90261831]
[1770558171026,0.001,2129.8,2129.3,0.90261831]
[1770558171533,0.003,2129.8,2129.3,0.90261831]
[1770558173250,0.003,2129.8,2129.5,0.90261831]
[1770558175328,0.002,2129.7,2128.9,4.73261831]
[1770558175654,0.002,2129.7,2129.4,1.17403461]
[1770558175862,0.002,2129.6,2129.4,1.17403461]
[1770558177331,0.001,2129.8,2129.4,0.90261831]
[1770558177540,0.002,2129.7,2129.4,0.90261831]
[1770558177771,0.002,2129.7,2129.5,0.0011]
[1770558178139,0.001,2129.6,2129.5,0.0011]
[1770558179361,0.001,2129.6,2129.5,1.1750845]
[1770558179863,0.001,2129.6,2129.3,0.0011]
[1770558180062,0.001,2129.6,2129.4,1.17403879]
[1770558180228,0.001,2129.6,2129.4,1.17403163]
[1770558181536,0.001,2129.6,2129.3,5.60007185]
[1770558181759,0.001,2129.6,2129.3,4.69745354]
[1770558182548,0.001,2129.6,2129.3,0.0011]
[1770558182989,0.001,2129.6,2129.3,0.90371831]
[1770558184593,0.001,2129.6,2129.5,0.90261831]
[1770558186298,0.001,2129.6,2129.4,5.00403963]
[1770558187069,0.001,2129.6,2129.4,5.90665794]
[1770558187270,0.001,2129.6,2129.4,5.00403963]
[1770558187988,0.001,2129.6,2129.4,5.90665794]
[1770558188300,0.001,2129.6,2129.5,0.90261831]
[1770558188903,0.001,2129.8,2129.6,0.90261831]
[1770558189399,3.283,2130.4,2129.6,0.90261831]
[1770558189601,0.001,2130.2,2129.6,0.90261831]
[1770558190398,0.90127146,2130.7,2129.6,0.90371831]
[1770558190602,0.001,2130.6,2129.6,0.90371831]
[1770558190982,0.001,2130.6,2129.8,0.90261831]
[1770558191182,0.32109909,2130.8,2129.8,0.90261831]
[1770558191183,0.001,2130.5,2129.8,0.90261831]
[1770558191407,0.001,2130.7,2129.8,0.90261831]
[1770558191875,0.001,2130.6,2129.8,0.90261831]
[1770558192874,0.001,2130.6,2130.1,0.90261831]
[1770558193290,0.90227146,2130.6,2130.0,1.17370892]
[1770558195081,0.90227146,2130.6,2129.7,1.17387425]
[1770558195492,0.9408557,2130.5,2129.7,1.17387425]
[1770558196184,0.9418557,2130.4,2129.7,2.08936872]
[1770558197493,0.9418557,2130.4,2129.7,1.17387425]
[1770558201008,0.9418557,2130.4,2129.7,2.08936872]
[1770558201982,0.9418557,2130.4,2129.7,1.17387425]
[1770558202908,0.001,2130.2,2129.7,1.17387425]
[1770558203287,0.001,2130.1,2129.7,1.17387425]
[1770558203988,0.001,2130.1,2129.7,2.08936872]
[1770558206614,0.001,2130.1,2129.6,0.91659447]
[1770558208221,0.001,2130.1,2129.7,4.74549447]
[1770558209296,0.001,2130.1,2129.8,1.17381913]
[1770558209624,0.001,2130.1,2129.7,5.00386643]
[1770558209625,0.9418557,2130.1,2129.7,5.00386643]
[1770558209917,0.9418557,2130.1,2129.6,1.1750042]
[1770558210120,0.9418557,2130.1,2129.6,0.0011]
[1770558210708,0.9418557,2130.1,2129.6,1.17502817]
[1770558211918,0.9408557,2130.1,2129.6,0.0011]
[1770558212115,0.9418557,2130.0,2129.6,0.0011]
[1770558214639,0.9418557,2130.0,2129.8,0.0011]
[1770558215023,0.9408557,2130.0,2129.8,0.0001]
[1770558215532,0.9408557,2130.0,2129.6,0.0011]
[1770558216306,0.9408557,2129.8,2129.4,3.8311]
[1770558219626,0.9408557,2129.8,2129.4,5.00513346]
[1770558219827,3.281,2130.0,2129.4,5.00513346]
[1770558220141,4.2218557,2130.0,2129.4,5.00513346]
[1770558220316,0.9408557,2129.9,2129.4,5.00513346]
[1770558221749,3.281,2130.0,2129.4,5.00513346]
[1770558222047,4.2218557,2130.0,2129.4,5.00513346]
[1770558222412,0.9408557,2129.9,2129.4,5.00513346]
[1770558222842,3.281,2130.0,2129.4,5.00513346]
[1770558223435,4.2218557,2130.0,2129.4,5.00513346]
[1770558223615,0.9408557,2129.9,2128.7,6.45]
[1770558223820,0.9408557,2129.9,2125.6,0.24533909]
[1770558223821,1.40338619,2129.2,2125.6,0.24533909]
[1770558224022,0.736,2129.3,2124.8,0.44729447]
[1770558224023,0.24526342,2125.5,2124.8,0.44729447]
[1770558224318,13.16632947,2125.6,2124.5,0.0011]
[1770558224319,3.84854713,2125.6,2124.9,0.91549447]
[1770558224636,13.16633,2125.7,2124.9,0.91549447]
[1770558225150,13.16633,2125.3,2124.6,0.92190299]
[1770558226347,13.16633,2125.3,2124.5,0.0011]
[1770558226348,13.16633,2124.9,2124.5,0.0011]
[1770558226547,1.17647258,2125.0,2124.5,0.0011]
[1770558227050,0.24566533,2124.7,2124.5,0.0011]
[1770558228526,1.17604908,2125.8,2125.0,0.0011]
[1770558228823,0.24530588,2125.5,2125.0,0.0011]
[1770558230743,0.73768967,2125.7,2125.0,0.0011]
[1770558230936,0.24530588,2125.6,2125.0,0.0011]
[1770558231324,0.24530588,2125.6,2125.0,3.2861]
[1770558232555,0.24530588,2125.6,2125.1,1.17641522]
[1770558233030,1.17589431,2126.1,2125.1,1.17641522]
[1770558233232,0.24530588,2126.0,2125.1,1.17641522]
[1770558233644,0.24530588,2126.0,2125.1,2.09831821]
[1770558235166,1.42127009,2126.0,2125.1,2.09831821]
[1770558236039,2.35072024,2126.0,2125.0,4.4625672]
[1770558236437,2.35072024,2126.0,2125.1,1.17641356]
[1770558238267,0.92945015,2125.9,2125.0,3.2861]
[1770558238636,0.24530588,2125.8,2125.0,3.2861]
[1770558239162,0.24530588,2125.7,2125.0,3.2861]
[1770558239565,1.17619383,2125.5,2125.0,3.2861]
[1770558239771,0.0736,2125.3,2125.0,3.2861]
[1770558239954,0.09815184,2125.3,2125.0,3.2861]
[1770558240160,0.24530588,2125.2,2125.1,0.0011]
[1770558240968,0.09815184,2125.3,2124.5,3.2881]
[1770558241173,0.24530588,2125.1,2124.5,3.2881]
[1770558241556,1.17647058,2125.0,2124.5,3.2881]
[1770558241767,1.42176338,2125.1,2124.5,3.2881]
[1770558241967,1.1764575,2125.1,2124.5,3.2881]
[1770558242268,0.24530588,2125.0,2124.5,3.2881]
[1770558243575,0.24530588,2125.0,2124.5,5.38673374]
[1770558244472,0.09815184,2125.3,2124.6,0.92190299]
[1770558244679,0.24530588,2125.2,2124.6,0.92190299]
[1770558245574,0.24530588,2125.2,2124.9,0.0011]
[1770558248183,1.17597252,2125.9,2125.0,1.17647058]
[1770558248356,1.4212784,2125.9,2125.1,3.288]
[1770558248682,2.35072855,2125.9,2125.1,3.288]
[1770558250266,2.10542267,2125.9,2125.1,4.46438428]
[1770558250565,0.24530588,2125.8,2125.1,4.46438428]
[1770558251072,0.24530588,2125.7,2125.1,5.38631134]
[1770558251274,0.24530588,2125.7,2125.2,0.92190299]
[1770558251579,0.24530588,2125.6,2125.2,0.92190299]
[1770558251786,0.24530588,2125.9,2125.2,0.92190299]
[1770558251967,1.42128525,2125.9,2125.2,0.92190299]
[1770558252280,2.3507354,2125.9,2125.1,4.46440835]
[1770558254788,0.14744069,2125.3,2125.1,4.46440835]
[1770558256085,2.10542952,2125.9,2125.1,4.46440835]
[1770558256390,1.21433587,2125.8,2125.1,4.46440835]
[1770558256765,0.24530588,2125.7,2125.1,4.46440835]
[1770558257289,0.24530588,2125.6,2125.1,4.46440835]
[1770558258687,0.13269662,2125.3,2125.1,4.46440835]
[1770558258894,0.13269662,2125.3,2125.2,0.9270662]
[1770558259080,0.24530588,2125.6,2125.2,0.9270662]
[1770558260384,0.96902999,2126.1,2125.2,0.9270662]
[1770558260599,2.14490418,2126.1,2125.2,0.9270662]
[1770558260793,0.24530588,2125.9,2125.3,1.17630452]
[1770558261692,0.96902999,2125.8,2125.2,1.17633449]
[1770558262071,1.21433587,2125.7,2125.1,4.46437764]
[1770558262480,0.24530588,2125.6,2125.1,4.46437764]
[1770558262698,0.11942696,2125.3,2125.1,4.46437764]
[1770558263464,0.11942696,2125.3,2125.1,4.36437764]
[1770558264574,0.36473284,2125.3,2125.1,4.36437764]
[1770558266165,0.36473284,2125.3,2123.5,0.2335703]
[1770558266166,0.5846865,2125.1,2122.1,19.16]
[1770558266370,0.5846865,2125.1,2120.1,16.89889632]
[1770558266371,0.04458838,2123.4,2122.2,0.9270662]
[1770558266696,0.6870865,2123.3,2122.3,3.288]
[1770558266883,0.6870865,2123.3,2122.3,10.21379412]
[1770558267587,0.94445039,2123.2,2122.3,10.21379412]
[1770558267785,1.17752343,2123.1,2122.3,10.21379412]
[1770558267983,1.17752343,2123.1,2122.3,11.39176008]
[1770558268188,0.94445039,2123.2,2122.4,6.92579412]
[1770558268189,0.35976389,2123.2,2122.4,6.92579412]
[1770558268394,1.53726173,2123.2,2122.4,6.92579412]
[1770558269097,1.53723539,2123.2,2122.5,6.92579412]
[1770558269303,0.1026571,2121.2,2120.6,1.17890958]
[1770558269602,1.07142999,2122.2,2121.0,3.289]
[1770558269804,0.04458838,2121.8,2121.1,2.50236588]
[1770558269996,1.01361837,2121.8,2121.2,3.289]
[1770558270301,0.04458838,2121.5,2121.2,3.1863429]
[1770558271015,0.04458838,2121.7,2121.2,3.1863429]
[1770558271201,0.2335703,2121.8,2121.2,4.51008527]
[1770558271509,0.2335703,2121.8,2121.2,3.1863429]
[1770558271873,1.20260029,2121.6,2121.2,2.6363429]
[1770558272106,1.20260029,2121.4,2120.1,1.1791879]
[1770558272413,0.04458838,2121.2,2120.2,4.46912016]
[1770558272581,0.2335703,2121.1,2120.3,1.32374237]
[1770558272775,0.2335703,2121.3,2120.3,1.32374237]
[1770558272990,0.04458838,2121.2,2120.3,1.27374237]
[1770558273708,0.2335703,2121.3,2120.3,1.27374237]
[1770558273891,0.2335703,2121.3,2120.3,2.45281688]
[1770558273892,1.17857816,2121.2,2120.3,2.45281688]
[1770558274204,1.07142999,2121.1,2120.3,0.72374237]
[1770558274508,0.24596203,2120.6,2120.3,1.90281704]
[1770558275497,0.15344597,2120.6,2120.3,1.90281704]
[1770558275698,2.14750007,2121.4,2120.3,1.17907467]
[1770558275994,0.3359703,2121.3,2120.4,0.5702964]
[1770558276181,1.07142999,2121.3,2120.4,0.5702964]
[1770558276581,1.17824488,2121.8,2120.5,0.9270662]
[1770558276810,1.17807831,2122.1,2120.6,0.9270662]
[1770558277011,0.1024,2122.0,2120.6,0.9270662]
[1770558277208,2.1471083,2122.1,2120.6,0.9270662]
[1770558277485,0.1024,2121.9,2120.7,1.4973626]
[1770558277682,1.17807831,2122.1,2120.7,0.9270662]
[1770558277900,0.1024,2122.0,2120.8,0.5702964]
[1770558278100,1.17807831,2122.1,2121.0,1.17868929]
[1770558278290,0.04458838,2121.9,2121.0,1.17868929]
[1770558278505,0.04458838,2121.9,2121.1,0.5702964]
[1770558278687,0.1024,2122.0,2121.1,0.5702964]
[1770558280314,1.17817957,2122.0,2121.2,1.17857816]
[1770558280492,1.17807831,2122.1,2121.2,1.17857816]
[1770558280694,0.1024,2122.0,2121.2,1.74887456]
[1770558281102,0.1024,2122.0,2121.2,1.17857816]
[1770558281504,1.17804634,2122.2,2121.3,0.5702964]
[1770558281814,0.1024,2122.1,2121.3,0.5702964]
[1770558282307,1.1778563,2122.5,2121.4,1.17846705]
[1770558282487,0.1024,2122.5,2121.4,1.17846705]
[1770558283286,1.01361837,2122.8,2121.5,0.9270662]
[1770558283506,0.1024,2122.7,2121.6,3.293]
[1770558284323,1.17772723,2122.8,2121.8,1.17824488]
[1770558284520,1.22231561,2122.8,2121.8,1.17824488]
[1770558285020,1.22231561,2122.8,2121.9,0.5702964]
[1770558285237,0.97777702,2122.5,2121.6,4.47131356]
[1770558285419,0.97777702,2122.5,2121.7,0.5102964]
[1770558285735,0.97877702,2122.5,2121.7,0.5102964]
[1770558285908,0.001,2122.5,2121.7,1.68857461]
[1770558286109,0.001,2122.5,2121.7,0.5102964]
[1770558286308,0.93318864,2122.3,2121.7,0.5102964]
[1770558286616,1.17791179,2122.4,2121.7,1.68859352]
[1770558286817,1.22348257,2122.5,2121.7,1.68859352]
[1770558287531,1.22348257,2122.5,2121.7,0.5102964]
[1770558288028,1.17889419,2122.5,2121.7,0.5102964]
[1770558288214,1.17889419,2122.5,2121.7,1.68859517]
[1770558288611,1.17889419,2122.5,2121.7,0.5102964]
[1770558289015,1.17889419,2122.5,2121.7,1.6885907]
[1770558290731,0.001,2122.5,2121.7,1.6885907]
[1770558291322,0.93418864,2122.5,2121.7,0.5102964]
[1770558291719,0.93418864,2122.5,2121.7,1.68858921]
[1770558292529,1.17791179,2122.4,2121.7,1.68858921]
[1770558293834,1.17791179,2122.4,2121.8,2.123]
[1770558294333,1.17791179,2122.4,2121.9,0.5102964]
[1770558294831,1.17888452,2122.5,2121.9,1.68848129]
[1770558295032,1.17888452,2122.5,2121.9,0.5102964]
[1770558295604,1.17888452,2122.5,2121.9,1.68848521]
[1770558295805,1.17888452,2122.5,2121.9,0.5102964]
[1770558296314,1.17888452,2122.5,2121.9,1.68847861]
[1770558296825,1.17888452,2122.5,2121.9,0.5102964]
[1770558297725,0.001,2122.5,2121.9,1.68848173]
[1770558298223,0.001,2122.5,2121.9,1.68958173]
[1770558298420,0.001,2122.3,2121.9,1.68958173]
[1770558299553,4.5632891,2122.6,2121.9,1.68958173]
[1770558300222,1.17780081,2122.6,2121.9,1.68958173]
[1770558300923,1.17757889,2123.0,2122.0,0.92203358]
[1770558301620,1.17754329,2123.1,2122.2,0.92203358]
[1770558301822,0.35976389,2123.2,2122.3,4.21603358]
[1770558302138,0.35976389,2123.2,2122.5,1.1778563]
[1770558302441,0.35976389,2123.2,2122.7,0.92203358]
[1770558302961,0.35976389,2123.2,2122.8,0.5102964]
[1770558303160,0.35976389,2123.2,2122.9,3.294]
[1770558304118,4.99720565,2123.7,2123.0,0.5102964]
[1770558304320,4.99720565,2123.7,2123.0,1.68784951]
[1770558305341,3.82,2123.7,2123.0,1.68784951]
[1770558305852,4.99719116,2123.7,2123.0,1.68784951]
[1770558306048,0.16914099,2125.2,2123.0,1.68784951]
[1770558306049,4.70753179,2124.3,2123.1,0.92203358]
[1770558306260,5.64072043,2124.3,2123.2,1.17746797]
[1770558306951,0.93318864,2123.8,2122.6,4.71112782]
[1770558307170,0.93318864,2123.8,2123.2,2.123]
[1770558307320,0.1024,2124.0,2123.3,3.293]
[1770558307525,2.11004689,2124.3,2123.3,3.8032964]
[1770558307951,0.97777702,2124.2,2123.3,3.8032964]
[1770558308247,0.93318864,2124.0,2123.3,3.293]
[1770558308452,2.11026854,2123.9,2123.3,3.293]
[1770558308952,0.93318864,2123.8,2123.3,3.293]
[1770558309119,0.1024,2123.7,2122.6,0.92203358]
[1770558309325,1.03558864,2123.7,2122.7,4.47074215]
[1770558309629,0.32375565,2123.6,2122.7,8.92600179]
[1770558309825,0.32375565,2123.6,2122.9,1.17763235]
[1770558310235,0.32375565,2123.6,2123.4,0.0011]
[1770558310459,1.50100183,2123.6,2123.5,3.293]
[1770558310654,1.50100183,2123.6,2123.4,0.0011]
[1770558311224,1.50100183,2123.6,2123.3,3.27423366]
[1770558311630,1.50100183,2123.6,2123.3,2.91369942]
[1770558312624,0.32375565,2123.6,2123.3,2.91369942]
[1770558312829,0.32375565,2123.6,2123.3,5.0131422]
[1770558313036,0.32375565,2123.6,2123.3,5.01313897]
[1770558313429,0.32375565,2123.6,2123.3,5.01314296]
[1770558313628,0.001,2124.1,2123.4,0.92203358]
[1770558314656,0.001,2124.1,2123.6,0.90346083]
[1770558316447,0.91999523,2124.1,2123.3,4.09105654]
[1770558316748,0.001,2124.1,2123.5,0.96073657]
[1770558319456,0.001,2124.1,2123.6,1.17724618]
[1770558319640,0.001,2124.1,2123.5,2.13799839]
[1770558320652,0.001,2124.1,2123.5,1.17727318]
[1770558320853,0.001,2124.1,2123.4,1.17731872]
[1770558321058,4.94008158,2124.8,2124.0,0.04458838]
[1770558321059,1e-08,2124.7,2124.0,0.04458838]
[1770558321360,4.7055239,2125.7,2124.2,1.17691366]
[1770558321361,1.1761385,2125.6,2124.2,1.17691366]
[1770558321547,1.1761385,2125.6,2124.3,0.04458838]
[1770558321743,1.1761385,2125.6,2124.2,1.17691366]
[1770558322135,2.0961121,2125.7,2124.2,1.17691366]
[1770558322932,2.0961121,2125.7,2124.3,0.96073657]
[1770558323137,0.001,2125.4,2124.3,0.96073657]
[1770558323453,0.001,2125.4,2124.5,0.96073657]
[1770558324764,0.001,2125.4,2124.5,0.7421254]
[1770558326171,0.001,2125.4,2124.6,1.17669208]
[1770558326861,0.91899523,2125.2,2124.3,1.17685672]
[1770558327168,0.91899523,2125.2,2124.2,1.17691324]
[1770558327544,0.91899523,2125.2,2124.3,1.17684963]
[1770558328468,1.17641522,2125.1,2124.2,1.17691366]
[1770558328771,2.09541045,2125.1,2124.1,4.46892819]
[1770558331964,0.91899523,2125.0,2124.1,4.46895323]
[1770558332462,1.17652595,2124.9,2124.1,3.292]
[1770558332763,0.91899523,2124.8,2124.1,3.292]
[1770558333138,1.02139523,2124.7,2124.1,3.292]
[1770558333335,0.1024,2124.7,2124.1,3.292]
[1770558333544,0.1024,2124.9,2124.1,3.292]
[1770558334082,1.02139523,2124.9,2124.1,3.292]
[1770558334375,0.1024,2124.3,2123.4,0.0011]
[1770558334541,1.17691366,2124.2,2123.7,3.29]
[1770558334961,1.17691366,2124.2,2124.0,0.0011]
[1770558335141,1.17691366,2124.2,2123.7,3.29]
[1770558335538,5.17671783,2124.6,2123.8,0.96073657]
[1770558335763,1.1766663,2124.7,2123.8,0.96073657]
[1770558336466,1.1766663,2124.7,2123.7,3.29]
[1770558336780,0.3359703,2124.7,2123.7,3.29]
[1770558336951,0.95469166,2124.7,2123.7,3.29]
[1770558337263,0.1024,2124.5,2123.7,3.29]
[1770558338843,1.17680286,2124.4,2123.7,3.29]
[1770558339568,4.99680286,2124.4,2123.7,3.29]
[1770558340072,3.82,2124.4,2123.8,0.96073657]
[1770558340846,4.99683931,2124.4,2123.8,0.96073657]
[1770558341041,4.99683931,2124.4,2123.7,3.29]
[1770558344879,1.1770799,2123.9,2123.2,0.0011]
[1770558347171,0.1024,2123.9,2123.2,0.0011]
[1770558348786,0.2335703,2123.8,2123.2,0.0011]
[1770558349361,1.17719075,2123.7,2123.2,0.0011]
[1770558349978,4.99719075,2123.7,2123.2,0.0011]
[1770558351477,0.1024,2123.6,2123.2,0.0011]
[1770558352591,0.1024,2123.6,2122.8,0.0011]
[1770558352892,0.1024,2123.6,2122.8,0.90862391]
[1770558353596,1.17730162,2123.5,2122.8,0.90862391]
[1770558354687,1.17730162,2123.5,2122.8,0.0011]
[1770558354867,1.17730162,2123.5,2122.7,0.68980721]
[1770558356271,1.17730162,2123.5,2122.8,0.90752391]
[1770558357306,0.1024,2123.9,2122.8,0.90752391]
[1770558357672,1.17713532,2123.8,2123.0,0.90752391]
[1770558358575,4.81094129,2123.9,2123.0,0.90752391]
[1770558358775,0.001,2125.4,2124.3,0.90752391]
[1770558358977,0.001,2125.4,2124.5,0.90752391]
[1770558359227,2.30058056,2125.3,2124.9,0.90752391]
[1770558360592,0.001,2125.4,2125.0,0.90752391]
[1770558364210,2.30158056,2125.4,2125.0,0.90752391]
[1770558364425,0.03995269,2125.3,2124.7,2.08415183]
[1770558364607,2.30158056,2125.4,2124.7,1.17662792]
[1770558364909,2.30158056,2125.4,2124.8,0.90752391]
[1770558367401,2.30158056,2125.4,2124.9,0.90752391]
[1770558369614,2.30158056,2125.4,2125.0,0.90752391]
[1770558369821,2.30158056,2125.4,2125.1,4.19752391]
[1770558370181,0.001,2125.4,2125.1,4.19752391]
[1770558372392,0.001,2125.2,2125.1,4.19752391]
[1770558374340,0.001,2125.7,2125.3,0.90665073]
[1770558375710,0.001,2125.7,2125.5,0.95810891]
[1770558376321,0.001,2125.7,2125.1,3.29]
[1770558376633,0.00100002,2125.6,2125.1,5.42452054]
[1770558377302,0.00100002,2125.6,2125.2,0.95810891]
[1770558377746,0.00100002,2125.6,2125.2,2.13446127]
[1770558379735,0.00100002,2125.6,2125.3,0.95810891]
[1770558380734,0.9,2125.4,2125.3,2.13440364]
[1770558381220,0.001,2125.7,2125.3,2.13440364]
[1770558381537,0.001,2125.7,2125.4,0.95810891]
[1770558382607,0.32220702,2126.3,2125.6,0.95810891]
[1770558382806,0.32220702,2126.3,2125.7,4.24710891]
[1770558383408,1.49796595,2126.3,2125.7,3.289]
[1770558384835,1.49796595,2126.3,2125.7,3.07046883]
[1770558386845,0.32220702,2126.3,2125.7,3.07046883]
[1770558387343,0.04458838,2126.2,2125.3,0.95810891]
[1770558387512,0.04458838,2126.2,2125.0,0.0011]
[1770558387513,0.98442644,2126.2,2125.4,3.288]
[1770558387939,0.04458838,2125.9,2125.4,3.288]
[1770558389375,1.22060718,2125.9,2125.4,3.288]
[1770558393565,1.1760188,2125.9,2125.4,3.288]
[1770558393958,4.70373519,2126.0,2125.4,3.288]
[1770558394458,0.5,2125.8,2125.4,3.288]
[1770558396068,0.5,2125.8,2125.6,0.0011]
[1770558396373,0.001,2125.7,2125.6,0.0011]
[1770558397447,0.001,2125.7,2125.4,3.2891]
[1770558398647,0.001,2125.7,2125.5,0.95810891]
[1770558406170,0.001,2125.7,2125.4,3.2891]
[1770558406360,0.001,2125.7,2125.4,4.28801462]
[1770558409178,0.001,2125.7,2125.6,0.0011]
[1770558414889,0.001,2125.7,2125.4,3.07163298]
[1770558421076,0.001,2125.7,2125.6,0.0011]
[1770558422198,0.92231324,2125.7,2125.0,0.0011]
[1770558422376,0.001,2125.7,2125.3,0.99891462]
[1770558422584,0.001,2125.7,2125.4,0.99891462]
[1770558426602,0.001,2125.7,2125.5,0.99891462]
[1770558428889,0.001,2125.7,2125.6,0.99891462]
[1770558430170,0.001,2125.7,2125.4,0.99891462]
[1770558430774,0.001,2125.7,2125.3,1.17630226]
[1770558430970,0.001,2125.7,2125.4,0.99891462]
[1770558431910,0.92131324,2125.5,2125.0,0.0011]
[1770558432201,0.001,2125.7,2125.1,0.99891462]
[1770558432901,0.001,2125.7,2125.6,0.0011]
[1770558433103,0.001,2125.7,2125.4,5.46315685]
[1770558433277,0.001,2125.5,2125.4,4.28691462]
[1770558433477,0.001,2125.5,2125.4,4.28801462]
[1770558435107,0.001,2125.5,2125.4,3.2891]
[1770558437209,0.001,2125.5,2125.0,0.0011]
[1770558437377,0.001,2125.5,2125.0,3.2902]
[1770558437831,0.04558838,2125.5,2125.0,0.0011]
[1770558437979,1.17624917,2125.4,2125.0,0.0011]
[1770558438181,0.94832385,2125.2,2124.8,0.0011]
[1770558438387,0.94832385,2125.2,2124.5,0.0011]
[1770558438609,0.94832385,2124.9,2124.5,0.0011]
[1770558439107,4.0,2124.8,2123.9,2.11414612]
[1770558439312,4.0,2124.8,2124.1,3.2891]
[1770558439811,0.90373547,2124.7,2124.1,3.2891]
[1770558440009,1.17669208,2124.6,2124.1,3.2891]
[1770558440383,5.17661594,2124.8,2124.2,0.9359701]